fUSD/lending_fUSD_20250616
["ID","MTS","AMOUNT","RATE_DAILY","PERIOD"]
[366091746,1750059032508,-668.65185757,0.00016428,2]
[366091748,1750059032518,-151.0,0.00016428,2]
[366091750,1750059032527,-721.73774163,0.00016431,2]
[366091753,1750059032539,-270.04308425,0.00016431,2]
[366091754,1750059032549,-11964.39285219,0.00016437,2]
[366091757,1750059032561,-3936.83297878,0.00016437,2]
[366091759,1750059032573,-1368.93615679,0.00016437,2]
[366091762,1750059032599,-1970.91269339,0.00016437,2]
[366091764,1750059032609,-435.14809659,0.00016437,2]
[366091767,1750059032620,-153.34672233,0.00016437,2]
[366091769,1750059032630,-155.0,0.00016437,2]
[366091770,1750059032640,-500.0,0.00016438,2]
[366091772,1750059032650,-322.45239098,0.00016438,2]
[366091774,1750059032660,-500.0,0.00016438,2]
[366091776,1750059032670,-500.0,0.00016438,2]
[366091778,1750059032680,-500.0,0.00016438,2]
[366091780,1750059032691,-500.0,0.00016438,2]
[366091782,1750059032701,-500.0,0.00016438,2]
[366091784,1750059032711,-490.0,0.00016438,2]
[366091786,1750059032721,-490.0,0.00016438,2]
[366091787,1750059032731,-490.0,0.00016438,2]
[366091788,1750059032741,-566.62,0.00016438,2]
[366091789,1750059032751,-490.0,0.00016438,2]
[366091790,1750059032761,-551.8,0.00016438,2]
[366091791,1750059032772,-490.0,0.00016438,2]
[366091792,1750059032782,-490.0,0.00016438,2]
[366091793,1750059032793,-490.0,0.00016438,2]
[366091794,1750059032803,-527.05,0.00016438,2]
[366091795,1750059032814,-707.41,0.00016438,2]
[366091796,1750059032824,-253.72,0.00016438,2]
[366091797,1750059032833,-490.0,0.00016438,2]
[366091798,1750059032843,-490.0,0.00016438,2]
[366091799,1750059032854,-490.0,0.00016438,2]
[366091800,1750059032864,-490.0,0.00016438,2]
[366091801,1750059032874,-300.0,0.00016438,2]
[366091802,1750059032884,-490.0,0.00016438,2]
[366091803,1750059032895,-490.0,0.00016438,2]
[366091804,1750059032905,-613.24,0.00016438,2]
[366091805,1750059032915,-492.91,0.00016438,2]
[366091806,1750059032926,-490.0,0.00016438,2]
[366091807,1750059032937,-490.0,0.00016438,2]
[366091808,1750059032946,-818.13,0.00016438,2]
[366091809,1750059032957,-784.78,0.00016438,2]
[366091810,1750059032967,-490.0,0.00016438,2]
[366091811,1750059032979,-490.0,0.00016438,2]
[366091812,1750059032990,-490.0,0.00016438,2]
[366091813,1750059033000,-516.28,0.00016438,2]
[366091814,1750059033011,-490.0,0.00016438,2]
[366091815,1750059033024,-490.0,0.00016438,2]
[366091816,1750059033034,-264.61577739,0.00016438,2]
[366091817,1750059033045,-490.0,0.00016438,2]
[366091818,1750059033056,-490.0,0.00016438,2]
[366091819,1750059033067,-490.0,0.00016438,2]
[366091820,1750059033077,-490.0,0.00016438,2]
[366091821,1750059033088,-541.5,0.00016438,2]
[366091822,1750059033099,-490.0,0.00016438,2]
[366091823,1750059033110,-490.0,0.00016438,2]
[366091824,1750059033121,-490.0,0.00016438,2]
[366091825,1750059033132,-490.0,0.00016438,2]
[366091826,1750059033142,-532.01,0.00016438,2]
[366091827,1750059033154,-490.0,0.00016438,2]
[366091828,1750059033166,-490.0,0.00016438,2]
[366091829,1750059033179,-575.29,0.00016438,2]
[366091830,1750059033196,-490.0,0.00016438,2]
[366091831,1750059033209,-490.0,0.00016438,2]
[366091832,1750059033222,-490.0,0.00016438,2]
[366091833,1750059033235,-642.46,0.00016438,2]
[366091834,1750059033247,-490.0,0.00016438,2]
[366091835,1750059033259,-490.0,0.00016438,2]
[366091836,1750059033271,-581.29,0.00016438,2]
[366091837,1750059033284,-634.73715353,0.00016438,2]
[366091838,1750059033295,-490.0,0.00016438,2]
[366091839,1750059033308,-490.0,0.00016438,2]
[366091840,1750059033319,-656.68,0.00016438,2]
[366091841,1750059033331,-490.0,0.00016438,2]
[366091842,1750059033343,-490.0,0.00016438,2]
[366091843,1750059033356,-490.0,0.00016438,2]
[366091844,1750059033369,-1005.93,0.00016438,2]
[366091845,1750059033381,-490.0,0.00016438,2]
[366091846,1750059033393,-490.0,0.00016438,2]
[366091847,1750059033405,-516.19,0.00016438,2]
[366091848,1750059033415,-490.0,0.00016438,2]
[366091849,1750059033427,-490.0,0.00016438,2]
[366091850,1750059033444,-490.0,0.00016438,2]
[366091851,1750059033456,-490.0,0.00016438,2]
[366091852,1750059033468,-490.0,0.00016438,2]
[366091853,1750059033482,-490.0,0.00016438,2]
[366091854,1750059033494,-490.0,0.00016438,2]
[366091855,1750059033506,-490.0,0.00016438,2]
[366091856,1750059033518,-490.0,0.00016438,2]
[366091857,1750059033531,-497.38,0.00016438,2]
[366091858,1750059033543,-490.0,0.00016438,2]
[366091859,1750059033555,-1404.7,0.00016438,2]
[366091860,1750059033567,-651.79,0.00016438,2]
[366091861,1750059033578,-490.0,0.00016438,2]
[366091862,1750059033588,-490.0,0.00016438,2]
[366091863,1750059033599,-490.0,0.00016438,2]
[366091864,1750059033610,-490.0,0.00016438,2]
[366091865,1750059033621,-490.0,0.00016438,2]
[366091866,1750059033632,-490.0,0.00016438,2]
[366091867,1750059033642,-490.0,0.00016438,2]
[366091868,1750059033653,-490.0,0.00016438,2]
[366091869,1750059033663,-490.0,0.00016438,2]
[366091870,1750059033674,-490.0,0.00016438,2]
[366091871,1750059033684,-490.0,0.00016438,2]
[366091872,1750059033698,-490.0,0.00016438,2]
[366091873,1750059033708,-490.0,0.00016438,2]
[366091874,1750059033719,-490.0,0.00016438,2]
[366091875,1750059033730,-460.67086211,0.00016438,2]
[366091876,1750059033741,-574.12969995,0.00016438,2]
[366091877,1750059034313,-347.60030005,0.00016438,2]
[366091878,1750059034323,-490.0,0.00016438,2]
[366091879,1750059034334,-490.0,0.00016438,2]
[366091880,1750059034343,-490.0,0.00016438,2]
[366091881,1750059034353,-490.0,0.00016438,2]
[366091882,1750059034364,-204.12897953,0.00016438,2]
[366091883,1750059034376,-285.87102047,0.00016438,2]
[366091884,1750059034386,-490.0,0.00016438,2]
[366091885,1750059034396,-490.0,0.00016438,2]
[366091886,1750059034406,-1669.5062396,0.00016438,2]
[366091888,1750059038996,-669.5202824,0.00016438,2]
[366091889,1750059039008,-490.0,0.00016438,2]
[366091890,1750059039025,-490.0,0.00016438,2]
[366091891,1750059039040,-620.97,0.00016438,2]
[366091892,1750059039056,-524.94,0.00016438,2]
[366091893,1750059039067,-490.0,0.00016438,2]
[366091895,1750059039078,-276.69880954,0.00016438,2]
[366091896,1750059039091,-490.0,0.00016438,2]
[366091898,1750059039102,-490.0,0.00016438,2]
[366091899,1750059039115,-0.24302028,0.00016438,2]
[366091900,1750059039132,-489.75697972,0.00016438,2]
[366091901,1750059039146,-490.0,0.00016438,2]
[366091902,1750059039157,-490.0,0.00016438,2]
[366091903,1750059039169,-644.98,0.00016438,2]
[366091904,1750059039180,-490.0,0.00016438,2]
[366091905,1750059039193,-490.0,0.00016438,2]
[366091906,1750059039215,-525.69,0.00016438,2]
[366091907,1750059039228,-613.99,0.00016438,2]
[366091908,1750059039240,-490.0,0.00016438,2]
[366091909,1750059039252,-603.72,0.00016438,2]
[366091910,1750059039264,-3349.596259,0.00016438,2]
[366091911,1750059039277,-159.983057,0.00016438,2]
[366091912,1750059039289,-490.0,0.00016438,2]
[366091913,1750059039301,-549.61,0.00016438,2]
[366091914,1750059039313,-490.0,0.00016438,2]
[366091915,1750059039326,-490.0,0.00016438,2]
[366091916,1750059039338,-490.0,0.00016438,2]
[366091917,1750059039351,-1099.1,0.00016438,2]
[366091918,1750059039364,-490.0,0.00016438,2]
[366091920,1750059039377,-490.0,0.00016438,2]
[366091921,1750059039389,-447.07137826,0.00016438,2]
[366091922,1750059039401,-490.0,0.00016438,2]
[366091923,1750059039414,-490.0,0.00016438,2]
[366091924,1750059039426,-490.0,0.00016438,2]
[366091925,1750059039439,-998.07,0.00016438,2]
[366091926,1750059039454,-490.0,0.00016438,2]
[366091927,1750059039466,-490.0,0.00016438,2]
[366091930,1750059039478,-490.0,0.00016438,2]
[366091932,1750059039491,-1402.39,0.00016438,2]
[366091934,1750059039503,-621.35,0.00016438,2]
[366091936,1750059039515,-522.64,0.00016438,2]
[366091938,1750059039527,-490.0,0.00016438,2]
[366091941,1750059039539,-649.02,0.00016438,2]
[366091943,1750059039552,-490.0,0.00016438,2]
[366091945,1750059039564,-490.0,0.00016438,2]
[366091947,1750059039576,-724.47,0.00016438,2]
[366091950,1750059039588,-798.81,0.00016438,2]
[366091952,1750059039602,-490.0,0.00016438,2]
[366091955,1750059039626,-490.0,0.00016438,2]
[366091957,1750059039639,-490.0,0.00016438,2]
[366091959,1750059039651,-490.0,0.00016438,2]
[366091963,1750059039664,-498.97291126,0.00016438,2]
[366091967,1750059039676,-204.67899844,0.00016438,2]
[366091970,1750059039688,-1155.19,0.00016438,2]
[366091973,1750059039701,-490.46724023,0.00016438,2]
[366091976,1750059039714,-1749.33,0.00016438,2]
[366091979,1750059039726,-490.0,0.00016438,2]
[366091981,1750059039738,-490.0,0.00016438,2]
[366091983,1750059039750,-1426.76,0.00016438,2]
[366091985,1750059039764,-490.0,0.00016438,2]
[366091988,1750059039777,-1174.43,0.00016438,2]
[366091990,1750059039789,-490.0,0.00016438,2]
[366091992,1750059039801,-490.0,0.00016438,2]
[366091994,1750059039814,-556.53,0.00016438,2]
[366091996,1750059039826,-490.0,0.00016438,2]
[366091999,1750059039838,-490.0,0.00016438,2]
[366092001,1750059039850,-575.06,0.00016438,2]
[366092003,1750059039863,-212.59339,0.00016438,2]
[366092005,1750059039875,-1745.88,0.00016438,2]
[366092008,1750059039887,-490.0,0.00016438,2]
[366092010,1750059039899,-596.71,0.00016438,2]
[366092012,1750059039911,-1057.63,0.00016438,2]
[366092014,1750059039923,-490.0,0.00016438,2]
[366092016,1750059039935,-490.0,0.00016438,2]
[366092018,1750059039949,-1266.06,0.00016438,2]
[366092021,1750059039961,-490.0,0.00016438,2]
[366092023,1750059039973,-490.0,0.00016438,2]
[366092025,1750059039985,-490.0,0.00016438,2]
[366092027,1750059039996,-500.75,0.00016438,2]
[366092029,1750059040008,-490.0,0.00016438,2]
[366092032,1750059040025,-40.79018609,0.00016438,2]
[366092035,1750059040044,-1087.20981391,0.00016438,2]
[366092036,1750059040058,-127.7180817,0.00016438,2]
[366092040,1750059040083,-489.6619183,0.00016438,2]
[366092042,1750059040098,-629.97,0.00016438,2]
[366092045,1750059040110,-490.0,0.00016438,2]
[366092047,1750059040121,-241.46528317,0.00016438,2]
[366092049,1750059040133,-1280.1,0.00016438,2]
[366092051,1750059040145,-1135.65,0.00016438,2]
[366092053,1750059040157,-765.38,0.00016438,2]
[366092055,1750059040170,-490.0,0.00016438,2]
[366092058,1750059040182,-1012.48,0.00016438,2]
[366092060,1750059040196,-490.0,0.00016438,2]
[366092062,1750059040208,-490.0,0.00016438,2]
[366092064,1750059040220,-490.0,0.00016438,2]
[366092066,1750059040232,-490.0,0.00016438,2]
[366092068,1750059040244,-1497.82,0.00016438,2]
[366092071,1750059040256,-490.0,0.00016438,2]
[366092073,1750059040268,-490.0,0.00016438,2]
[366092075,1750059040280,-524.72,0.00016438,2]
[366092077,1750059040291,-663.13,0.00016438,2]
[366092080,1750059040303,-490.0,0.00016438,2]
[366092082,1750059040315,-490.0,0.00016438,2]
[366092084,1750059040326,-743.87,0.00016438,2]
[366092086,1750059040338,-490.0,0.00016438,2]
[366092089,1750059040349,-490.0,0.00016438,2]
[366092091,1750059040361,-279.84293113,0.00016438,2]
[366092093,1750059040372,-1239.24703981,0.00016438,2]
[366092122,1750059040652,-232.21296019,0.00016438,2]
[366092124,1750059040663,-388.79803693,0.00016438,2]
[366092127,1750059040675,-37.46743647,0.00016438,2]
[366092129,1750059040688,-527.67256353,0.00016438,2]
[366092131,1750059040701,-490.0,0.00016438,2]
[366092133,1750059040712,-491.05988804,0.00016438,2]
[366092136,1750059040723,-683.89,0.00016438,2]
[366092138,1750059040734,-672.73,0.00016438,2]
[366092140,1750059040747,-491.45908757,0.00016438,2]
[366092143,1750059040761,-490.0,0.00016438,2]
[366092145,1750059040772,-494.55406496,0.00016438,2]
[366092147,1750059040783,-690.58116367,0.00016438,2]
[366092157,1750059040876,-222.93883633,0.00016438,2]
[366092160,1750059040887,-415.32012056,0.00016438,2]
[366092162,1750059040898,-490.0,0.00016438,2]
[366092164,1750059040910,-836.31,0.00016438,2]
[366092166,1750059040922,-597.63,0.00016438,2]
[366092168,1750059040933,-490.0,0.00016438,2]
[366092170,1750059040947,-1387.11,0.00016438,2]
[366092172,1750059040959,-490.0,0.00016438,2]
[366092175,1750059040973,-388.92271181,0.00016438,2]
[366092177,1750059040986,-490.0,0.00016438,2]
[366092179,1750059040999,-490.0,0.00016438,2]
[366092181,1750059041014,-490.0,0.00016438,2]
[366092183,1750059041027,-882.63,0.00016438,2]
[366092185,1750059041043,-1160.92,0.00016438,2]
[366092187,1750059041056,-1027.04,0.00016438,2]
[366092190,1750059041069,-490.0,0.00016438,2]
[366092192,1750059041082,-490.0,0.00016438,2]
[366092194,1750059041095,-490.0,0.00016438,2]
[366092196,1750059041106,-288.65960048,0.00016438,2]
[366092198,1750059041121,-490.0,0.00016438,2]
[366092201,1750059041134,-490.0,0.00016438,2]
[366092203,1750059041145,-696.28,0.00016438,2]
[366092204,1750059041158,-532.29,0.00016438,2]
[366092207,1750059041170,-490.0,0.00016438,2]
[366092209,1750059041182,-490.0,0.00016438,2]
[366092211,1750059041196,-490.0,0.00016438,2]
[366092213,1750059041209,-551.63,0.00016438,2]
[366092215,1750059041222,-490.0,0.00016438,2]
[366092217,1750059041234,-490.0,0.00016438,2]
[366092219,1750059041246,-490.0,0.00016438,2]
[366092221,1750059041259,-711.05,0.00016438,2]
[366092224,1750059041271,-581.79,0.00016438,2]
[366092226,1750059041284,-626.27,0.00016438,2]
[366092227,1750059041297,-542.36,0.00016438,2]
[366092228,1750059041308,-1283.04873896,0.00016438,2]
[366092229,1750059041387,-217.84126104,0.00016438,2]
[366092230,1750059041399,-99.44055328,0.00016438,2]
[366092235,1750059041450,-390.55944672,0.00016438,2]
[366092238,1750059041462,-1063.4,0.00016438,2]
[366092240,1750059041474,-490.0,0.00016438,2]
[366092242,1750059041486,-634.03,0.00016438,2]
[366092244,1750059041498,-1365.8,0.00016438,2]
[366092247,1750059041510,-1224.3,0.00016438,2]
[366092249,1750059041521,-490.0,0.00016438,2]
[366092251,1750059041533,-490.0,0.00016438,2]
[366092253,1750059041545,-894.49,0.00016438,2]
[366092255,1750059041557,-496.22,0.00016438,2]
[366092258,1750059041568,-490.0,0.00016438,2]
[366092260,1750059041581,-612.9,0.00016438,2]
[366092262,1750059041592,-490.0,0.00016438,2]
[366092264,1750059041603,-1334.11,0.00016438,2]
[366092267,1750059041615,-782.09,0.00016438,2]
[366092269,1750059041627,-1141.48,0.00016438,2]
[366092271,1750059041638,-490.0,0.00016438,2]
[366092273,1750059041650,-1653.51,0.00016438,2]
[366092275,1750059041661,-519.96,0.00016438,2]
[366092277,1750059041673,-599.52,0.00016438,2]
[366092280,1750059041684,-492.33115449,0.00016438,2]
[366092282,1750059041697,-490.0,0.00016438,2]
[366092284,1750059041709,-490.0,0.00016438,2]
[366092286,1750059041720,-490.0,0.00016438,2]
[366092288,1750059041732,-681.51,0.00016438,2]
[366092291,1750059041743,-743.62,0.00016438,2]
[366092293,1750059041755,-622.03,0.00016438,2]
[366092295,1750059041769,-490.0,0.00016438,2]
[366092297,1750059041780,-1457.91,0.00016438,2]
[366092299,1750059041792,-1059.99,0.00016438,2]
[366092301,1750059041803,-1288.7,0.00016438,2]
[366092304,1750059041814,-1417.0,0.00016438,2]
[366092306,1750059041826,-1617.47,0.00016438,2]
[366092308,1750059041837,-490.0,0.00016438,2]
[366092310,1750059041849,-705.73,0.00016438,2]
[366092312,1750059041861,-348.38369544,0.00016438,2]
[366092314,1750059041872,-490.0,0.00016438,2]
[366092317,1750059041883,-593.91,0.00016438,2]
[366092319,1750059041895,-490.0,0.00016438,2]
[366092321,1750059041907,-626.32,0.00016438,2]
[366092323,1750059041919,-490.0,0.00016438,2]
[366092325,1750059041929,-490.0,0.00016438,2]
[366092328,1750059041942,-1667.04,0.00016438,2]
[366092330,1750059041954,-754.17,0.00016438,2]
[366092332,1750059041966,-508.88,0.00016438,2]
[366092334,1750059041977,-490.0,0.00016438,2]
[366092336,1750059041989,-985.3,0.00016438,2]
[366092423,1750059042865,-729.52,0.00016438,2]
[366092424,1750059042906,-567.82,0.00016438,2]
[366092425,1750059042936,-226.22894884,0.00016438,2]
[366092427,1750059042954,-156.08470984,0.00016438,2]
[366092429,1750059042965,-490.0,0.00016438,2]
[366092431,1750059042975,-497.82487418,0.00016438,2]
[366092432,1750059042985,-1829.6,0.00016438,2]
[366092433,1750059042996,-490.0,0.00016438,2]
[366092434,1750059043007,-490.0,0.00016438,2]
[366092435,1750059043018,-490.0,0.00016438,2]
[366092436,1750059043029,-1174.62,0.00016438,2]
[366092437,1750059043041,-677.32,0.00016438,2]
[366092439,1750059043052,-490.0,0.00016438,2]
[366092440,1750059043062,-490.0,0.00016438,2]
[366092442,1750059043072,-1016.8,0.00016438,2]
[366092444,1750059043082,-490.0,0.00016438,2]
[366092445,1750059043091,-490.0,0.00016438,2]
[366092447,1750059043101,-1106.58,0.00016438,2]
[366092449,1750059043112,-490.0,0.00016438,2]
[366092451,1750059043123,-490.0,0.00016438,2]
[366092452,1750059043133,-516.77,0.00016438,2]
[366092453,1750059043142,-508.54,0.00016438,2]
[366092454,1750059043152,-663.45,0.00016438,2]
[366092455,1750059043163,-490.0,0.00016438,2]
[366092456,1750059043173,-1126.34,0.00016438,2]
[366092457,1750059043183,-490.0,0.00016438,2]
[366092458,1750059043193,-1075.01,0.00016438,2]
[366092459,1750059043204,-490.0,0.00016438,2]
[366092460,1750059043214,-490.0,0.00016438,2]
[366092461,1750059043223,-490.0,0.00016438,2]
[366092462,1750059043233,-1142.81,0.00016438,2]
[366092463,1750059043243,-743.09,0.00016438,2]
[366092464,1750059043252,-380.24078217,0.00016438,2]
[366092465,1750059043268,-109.75921783,0.00016438,2]
[366092466,1750059043278,-490.0,0.00016438,2]
[366092467,1750059043288,-549.63,0.00016438,2]
[366092468,1750059043299,-1452.73,0.00016438,2]
[366092469,1750059043309,-490.0,0.00016438,2]
[366092470,1750059043319,-490.0,0.00016438,2]
[366092471,1750059043329,-490.0,0.00016438,2]
[366092472,1750059043339,-51.88997674,0.00016438,2]
[366092473,1750059043352,-448.11002326,0.00016438,2]
[366092474,1750059043362,-547.65834527,0.00016438,2]
[366092475,1750059043372,-2191.5,0.00016438,2]
[366092476,1750059043382,-712.69,0.00016438,2]
[366092477,1750059043393,-598.3,0.00016438,2]
[366092478,1750059043403,-490.0,0.00016438,2]
[366092479,1750059043413,-490.0,0.00016438,2]
[366092480,1750059043423,-490.0,0.00016438,2]
[366092481,1750059043433,-818.3,0.00016438,2]
[366092482,1750059043443,-490.0,0.00016438,2]
[366092483,1750059043454,-1327.24,0.00016438,2]
[366092484,1750059043464,-525.33,0.00016438,2]
[366092485,1750059043474,-490.0,0.00016438,2]
[366092486,1750059043485,-490.0,0.00016438,2]
[366092487,1750059043495,-537.41,0.00016438,2]
[366092488,1750059043505,-490.0,0.00016438,2]
[366092489,1750059043515,-490.0,0.00016438,2]
[366092490,1750059043526,-490.0,0.00016438,2]
[366092491,1750059043535,-278.0633485,0.00016438,2]
[366092492,1750059043548,-211.9366515,0.00016438,2]
[366092493,1750059043558,-310.97523305,0.00016438,2]
[366092494,1750059043570,-2034.15476695,0.00016438,2]
[366092495,1750059043580,-490.0,0.00016438,2]
[366092496,1750059043590,-529.13,0.00016438,2]
[366092497,1750059043600,-490.0,0.00016438,2]
[366092498,1750059043610,-490.0,0.00016438,2]
[366092499,1750059043620,-1011.42,0.00016438,2]
[366092500,1750059043630,-490.0,0.00016438,2]
[366092501,1750059043640,-490.0,0.00016438,2]
[366092502,1750059043650,-490.0,0.00016438,2]
[366092503,1750059043659,-490.0,0.00016438,2]
[366092504,1750059043669,-500.0,0.00016438,2]
[366092505,1750059043678,-490.0,0.00016438,2]
[366092506,1750059043688,-517.18,0.00016438,2]
[366092507,1750059043700,-490.0,0.00016438,2]
[366092508,1750059043709,-490.0,0.00016438,2]
[366092509,1750059043719,-490.0,0.00016438,2]
[366092510,1750059043729,-1597.49,0.00016438,2]
[366092511,1750059043739,-490.0,0.00016438,2]
[366092512,1750059043749,-490.0,0.00016438,2]
[366092513,1750059043758,-490.0,0.00016438,2]
[366092514,1750059043768,-1536.88,0.00016438,2]
[366092515,1750059043778,-490.0,0.00016438,2]
[366092516,1750059043787,-945.01,0.00016438,2]
[366092517,1750059043798,-490.0,0.00016438,2]
[366092518,1750059043807,-703.07,0.00016438,2]
[366092519,1750059043817,-490.0,0.00016438,2]
[366092520,1750059043827,-1066.63,0.00016438,2]
[366092521,1750059043837,-497.03590707,0.00016438,2]
[366092522,1750059043847,-490.0,0.00016438,2]
[366092523,1750059043857,-1457.56,0.00016438,2]
[366092524,1750059043867,-682.88,0.00016438,2]
[366092525,1750059043877,-490.0,0.00016438,2]
[366092526,1750059043887,-490.0,0.00016438,2]
[366092527,1750059043897,-490.0,0.00016438,2]
[366092528,1750059043907,-675.43,0.00016438,2]
[366092529,1750059043916,-1152.46,0.00016438,2]
[366092530,1750059043926,-490.0,0.00016438,2]
[366092531,1750059043936,-579.1,0.00016438,2]
[366092532,1750059043945,-564.38,0.00016438,2]
[366092533,1750059043955,-775.37,0.00016438,2]
[366092534,1750059043964,-490.0,0.00016438,2]
[366092535,1750059043974,-490.0,0.00016438,2]
[366092536,1750059043983,-495.5,0.00016438,2]
[366092537,1750059043993,-490.0,0.00016438,2]
[366092538,1750059044002,-706.38,0.00016438,2]
[366092539,1750059044012,-490.0,0.00016438,2]
[366092540,1750059044022,-629.72,0.00016438,2]
[366092541,1750059044033,-1197.64,0.00016438,2]
[366092542,1750059044044,-490.0,0.00016438,2]
[366092543,1750059044054,-526.54,0.00016438,2]
[366092544,1750059044065,-490.0,0.00016438,2]
[366092545,1750059044075,-490.0,0.00016438,2]
[366092546,1750059044085,-489.45315941,0.00016438,2]
[366092547,1750059044095,-1844.88,0.00016438,2]
[366092548,1750059044106,-850.12,0.00016438,2]
[366092549,1750059044116,-877.03,0.00016438,2]
[366092550,1750059044126,-2135.23,0.00016438,2]
[366092551,1750059044136,-490.0,0.00016438,2]
[366092552,1750059044145,-797.16,0.00016438,2]
[366092553,1750059044156,-547.38,0.00016438,2]
[366092554,1750059044166,-645.73,0.00016438,2]
[366092555,1750059044176,-1145.87,0.00016438,2]
[366092556,1750059044186,-964.94,0.00016438,2]
[366092557,1750059044198,-490.0,0.00016438,2]
[366092558,1750059044208,-490.0,0.00016438,2]
[366092559,1750059044218,-1408.89,0.00016438,2]
[366092560,1750059044228,-801.48,0.00016438,2]
[366092561,1750059044238,-2469.5,0.00016438,2]
[366092562,1750059044248,-155.84472599,0.00016438,2]
[366092563,1750059044259,-754.47,0.00016438,2]
[366092564,1750059044269,-1470.97,0.00016438,2]
[366092565,1750059044278,-1003.11,0.00016438,2]
[366092566,1750059044288,-819.58,0.00016438,2]
[366092567,1750059044298,-874.4,0.00016438,2]
[366092568,1750059044308,-490.0,0.00016438,2]
[366092569,1750059044318,-535.73,0.00016438,2]
[366092570,1750059044328,-490.0,0.00016438,2]
[366092571,1750059044338,-490.0,0.00016438,2]
[366092572,1750059044348,-490.0,0.00016438,2]
[366092573,1750059044358,-1818.8,0.00016438,2]
[366092574,1750059044368,-906.57,0.00016438,2]
[366092575,1750059044378,-2127.85,0.00016438,2]
[366092576,1750059044389,-989.86,0.00016438,2]
[366092577,1750059044400,-616.8,0.00016438,2]
[366092578,1750059044410,-490.0,0.00016438,2]
[366092579,1750059044420,-1634.64,0.00016438,2]
[366092580,1750059044430,-4067.25,0.00016438,2]
[366092581,1750059044440,-332.01493035,0.00016438,2]
[366092582,1750059044451,-490.0,0.00016438,2]
[366092583,1750059044461,-549.08,0.00016438,2]
[366092584,1750059044471,-1354.58,0.00016438,2]
[366092585,1750059044481,-490.0,0.00016438,2]
[366092586,1750059044491,-1314.36,0.00016438,2]
[366092587,1750059044500,-490.0,0.00016438,2]
[366092588,1750059044510,-3901.18,0.00016438,2]
[366092589,1750059044520,-1886.91,0.00016438,2]
[366092590,1750059044531,-932.82,0.00016438,2]
[366092591,1750059044541,-490.0,0.00016438,2]
[366092592,1750059044551,-1222.18,0.00016438,2]
[366092593,1750059044561,-724.86,0.00016438,2]
[366092594,1750059044571,-861.26,0.00016438,2]
[366092595,1750059044581,-490.0,0.00016438,2]
[366092596,1750059044591,-2011.39,0.00016438,2]
[366092597,1750059044601,-1193.8,0.00016438,2]
[366092598,1750059044611,-490.0,0.00016438,2]
[366092599,1750059044622,-1291.74,0.00016438,2]
[366092600,1750059044632,-490.0,0.00016438,2]
[366092601,1750059044643,-490.0,0.00016438,2]
[366092602,1750059044654,-1340.34,0.00016438,2]
[366092603,1750059044665,-490.0,0.00016438,2]
[366092604,1750059044675,-2152.49,0.00016438,2]
[366092605,1750059044686,-3130.75,0.00016438,2]
[366092606,1750059044697,-490.0,0.00016438,2]
[366092607,1750059044708,-649.53,0.00016438,2]